bitfinex-derivatives/quotes_ETHF0:USTF0_20250427
["timestamp","ask_amount","ask_price","bid_price","bid_amount"]
[1745716490212,18.8205318,1852.2,1852.1,3.44e-06]
[1745716490613,18.82221499,1852.2,1852.1,3.44e-06]
[1745716491219,15.10221499,1852.2,1852.1,3.44e-06]
[1745716491613,9.28725,1852.2,1852.1,3.44e-06]
[1745716491912,15.01325,1852.2,1852.1,3.44e-06]
[1745716493418,15.102215,1852.2,1852.1,3.44e-06]
[1745716493618,9.28725,1852.2,1852.1,3.44e-06]
[1745716493818,15.01525,1852.2,1852.1,3.44e-06]
[1745716494117,10.01525,1852.2,1852.1,3.44e-06]
[1745716494318,10.01525,1852.2,1852.1,1.66140344]
[1745716495719,4.28725,1852.2,1852.1,1.66140344]
[1745716495922,10.01525,1852.2,1852.1,1.66140344]
[1745716496922,5.728,1852.2,1852.1,6.66140344]
[1745716497124,6.80745,1852.2,1852.1,1.66140344]
[1745716497325,10.01525,1852.2,1852.1,3.44e-06]
[1745716497526,4.28725,1852.2,1852.1,3.44e-06]
[1745716497724,10.01525,1852.2,1852.1,1.64030344]
[1745716497919,4.28725,1852.2,1852.1,1.64030344]
[1745716498225,6.80745,1852.2,1852.1,1.64030344]
[1745716498420,3.2078,1852.5,1852.1,1.64030344]
[1745716498637,1.07941,1852.3,1852.1,2.71978344]
[1745716498819,1.07941,1852.3,1852.2,1.6403]
[1745716499222,4.28721,1852.3,1852.2,5.3623]
[1745716500021,4.28721,1852.3,1852.2,2.52296]
[1745716500227,1.07945,1852.2,1852.1,3.44e-06]
[1745716500423,1.16841123,1852.2,1852.1,3.44e-06]
[1745716500725,1.07974,1851.7,1851.6,1.6403]
[1745716500922,10.01654,1851.7,1851.6,1.6403]
[1745716501124,6.80874,1851.7,1851.6,1.6403]
[1745716501428,1.07974,1851.7,1851.6,1.6403]
[1745716501618,6.80874,1851.7,1851.6,1.6403]
[1745716501824,6.80874,1851.7,1851.6,6.6403]
[1745716502030,6.80874,1851.7,1851.6,1.6403]
[1745716502615,1.07972,1851.8,1851.6,6.6403]
[1745716502814,1.0798,1851.6,1851.5,3.722]
[1745716503527,5.729,1851.7,1851.6,1.0798]
[1745716503719,3.2078,1851.9,1851.5,11.42158]
[1745716503946,2.69797,1852.7,1851.7,3.2078]
[1745716503947,8.7108,1852.4,1851.7,3.2078]
[1745716504126,5.503,1852.4,1851.7,6.9298]
[1745716504320,5.503,1852.4,1852.1,1.07946]
[1745716504516,5.503,1852.3,1852.1,1.07946]
[1745716504718,5.503,1852.3,1852.0,3.2078]
[1745716504918,5.503,1852.3,1851.7,9.6291]
[1745716505120,6.58242,1852.3,1852.0,3.722]
[1745716505422,1.07942,1852.3,1852.1,1.0795]
[1745716505723,63.8038,1853.0,1852.1,4.8523]
[1745716505927,1.07912,1852.8,1852.5,1.07922]
[1745716506138,1.07917,1852.7,1852.5,4.80122]
[1745716506320,1.07917,1852.7,1852.5,3.722]
[1745716506520,1.07921,1852.6,1852.5,3.722]
[1745716506830,1.07913,1852.8,1852.5,4.80125]
[1745716507025,1.07912,1852.8,1852.5,4.80124]
[1745716507229,63.8038,1853.0,1852.5,4.80124]
[1745716507230,63.8038,1853.0,1852.5,3.722]
[1745716507431,63.8038,1853.0,1852.5,6.9298]
[1745716507627,63.8038,1853.0,1852.6,0.67576239]
[1745716507926,1.07913,1852.8,1852.5,8.00906]
[1745716508119,1.07913,1852.8,1852.5,4.80126]
[1745716508324,63.8038,1853.0,1852.5,6.9298]
[1745716508524,64.88281,1853.0,1852.7,1.07915]
[1745716508734,63.8038,1853.0,1852.5,6.9298]
[1745716508929,60.596,1853.0,1852.5,8.00902]
[1745716509132,3.2078,1852.7,1852.5,3.722]
[1745716509383,9.78898,1852.7,1852.6,0.67945723]
[1745716510127,9.78898,1852.7,1852.6,7.23e-06]
[1745716510326,1.07945,1852.2,1852.1,1.6445]
[1745716510624,8.7098,1852.2,1851.7,3.2078]
[1745716510828,1.07974,1851.7,1851.6,1.6064]
[1745716511232,6.58174,1851.7,1851.6,1.6064]
[1745716511537,5.502,1851.7,1851.1,1.08007]
[1745716511728,1.07999,1851.3,1851.1,1.6064]
[1745716511927,5.503,1851.2,1851.1,1.6064]
[1745716512330,9.79083,1851.2,1851.1,0.8202]
[1745716512630,1.08009,1851.1,1851.0,3.722]
[1745716513133,1.08023,1850.9,1850.5,1.08041]
[1745716513324,1.08034,1850.7,1850.3,1.606]
[1745716513523,1.08044,1850.5,1850.4,1.6556]
[1745716513725,4.28824,1850.5,1850.4,1.6556]
[1745716513930,9.28824,1850.5,1850.4,1.6556]
[1745716514123,3.2078,1850.5,1849.6,3.2882]
[1745716514324,3.2078,1850.5,1850.1,1.08063]
[1745716514325,5.503,1850.5,1850.1,1.08063]
[1745716514532,5.503,1850.5,1850.2,1.6556]
[1745716514759,1.08055,1850.3,1850.2,1.6556]
[1745716515128,4.28835,1850.3,1850.2,1.6556]
[1745716515433,4.28835,1850.3,1850.2,5.3776]
[1745716515729,9.28835,1850.3,1850.2,3.722]
[1745716515934,9.28835,1850.3,1850.2,2.50396]
[1745716516133,1.08078,1850.0,1849.7,1.5887]
[1745716516334,3.2078,1849.8,1849.1,1.6408]
[1745716516537,4.28867,1849.8,1849.4,1.08104]
[1745716516730,4.28865,1849.8,1849.5,1.5887]
[1745716516932,5.504,1849.9,1849.5,1.5887]
[1745716517132,5.504,1849.9,1849.7,1.08089]
[1745716517329,5.504,1849.9,1849.8,1.5887]
[1745716517633,3.2078,1850.0,1849.5,3.722]
[1745716517826,3.2078,1850.0,1849.6,1.5887]
[1745716518034,5.506,1849.9,1849.8,1.08085]
[1745716518333,5.506,1850.0,1849.9,1.08079]
[1745716518530,5.506,1850.1,1849.7,1.5887]
[1745716518734,4.28855,1850.0,1849.7,1.5887]
[1745716519235,4.28855,1850.0,1849.7,5.3107]
[1745716519532,4.28865,1849.8,1849.7,3.722]
[1745716519759,4.28865,1849.8,1849.7,1.04828]
[1745716520077,4.28865,1849.8,1849.2,1.559]
[1745716520078,1.08135,1849.0,1848.7,1.08146]
[1745716520224,5.506,1848.9,1848.7,5.281]
[1745716520422,5.506,1848.9,1848.8,1.08143]
[1745716520932,5.508,1849.1,1848.7,5.281]
[1745716521134,5.508,1849.1,1849.0,1.08131]
[1745716521330,3.2078,1849.5,1848.7,13.4888]
[1745716521534,60.633,1849.9,1849.1,3.2078]
[1745716521738,5.508,1849.8,1849.7,1.08091]
[1745716522036,66.141,1849.9,1849.8,1.08085]
[1745716522229,60.633,1849.9,1849.5,1.081]
[1745716522429,6.58887,1849.8,1849.6,1.6458]
[1745716522836,1.08091,1849.7,1849.6,1.6458]
[1745716523238,5.508,1849.8,1849.6,1.6458]
[1745716523530,5.508,1849.8,1849.5,3.722]
[1745716523531,13.7158,1849.8,1849.5,3.722]
[1745716523737,4.28876,1849.6,1849.5,3.722]
[1745716524135,9.28876,1849.6,1849.5,3.722]
[1745716524336,8.2078,1849.6,1848.7,4.8536]
[1745716524540,1.08122,1849.2,1848.9,1.08135]
[1745716524734,6.59026,1849.1,1849.0,1.5896]
[1745716524924,1.08135,1849.0,1848.7,1.08148]
[1745716525233,1.08132,1849.0,1848.8,1.5896]
[1745716525432,6.59037,1848.9,1848.8,1.5896]
[1745716525941,1.08143,1848.8,1848.7,3.722]
[1745716526139,1.08143,1848.8,1848.7,5.3116]
[1745716526340,1.08143,1848.8,1848.7,3.722]
[1745716526583,5.37373,1848.8,1848.7,3.722]
[1745716527033,2.16593,1848.8,1848.7,3.722]
[1745716527234,67.26441,1848.9,1848.7,3.722]
[1745716527438,67.26441,1848.9,1848.8,1.5896]
[1745716527636,1.08143,1848.8,1848.7,3.722]
[1745716528034,2.16593,1848.8,1848.7,3.722]
[1745716528337,1.08159,1848.6,1848.4,1.6578]
[1745716528635,3.2078,1849.2,1848.4,9.8656]
[1745716528842,5.51,1849.1,1849.0,1.08131]
[1745716529341,3.2078,1849.2,1849.1,1.08126]
[1745716529540,5.511,1849.2,1849.1,1.08126]
[1745716529932,5.511,1849.2,1849.1,7.73906]
[1745716530133,5.511,1849.2,1849.1,2.73906]
[1745716530638,5.511,1849.2,1849.1,7.73906]
[1745716530841,3.2078,1849.6,1849.1,9.36083]
[1745716531041,5.511,1849.6,1849.2,4.8667]
[1745716531243,5.511,1849.6,1849.5,1.08102]
[1745716531630,5.511,1849.6,1849.4,4.28884]
[1745716531935,5.511,1849.6,1849.5,1.6589]
[1745716532243,6.59196,1849.6,1849.5,5.3809]
[1745716532644,6.59196,1849.6,1849.5,3.722]
[1745716532831,12.67916,1849.6,1849.5,3.722]
[1745716533236,12.67916,1849.6,1849.0,5.94799]
[1745716533237,1.08119,1849.3,1849.0,5.94799]
[1745716533441,3.2078,1849.5,1849.0,4.8667]
[1745716533644,3.2078,1849.5,1849.4,1.08108]
[1745716533845,8.5968,1849.5,1849.4,1.08108]
[1745716534241,8.5968,1849.5,1849.4,3.722]
[1745716534442,3.2078,1849.5,1849.4,3.722]
[1745716534642,60.674,1849.7,1849.4,8.5373]
[1745716534842,5.389,1849.6,1849.5,1.08102]
[1745716535440,3.2078,1849.9,1849.6,1.08096]
[1745716535645,4.2886,1849.9,1849.7,1.08086]
[1745716535846,6.46986,1849.8,1849.4,6.9298]
[1745716536159,5.389,1849.7,1849.4,6.9298]
[1745716536350,5.389,1849.7,1849.6,1.08096]
[1745716536550,1.08097,1849.6,1849.4,4.28886]
[1745716536849,5.389,1849.7,1849.4,3.2078]
[1745716537055,5.389,1849.7,1849.6,1.08096]
[1745716537349,5.389,1849.7,1849.5,4.80299]
[1745716537651,5.389,1849.7,1849.6,1.08096]
[1745716537844,5.389,1849.7,1849.5,4.80298]
[1745716538044,1.08087,1849.8,1849.5,4.80298]
[1745716538262,5.389,1849.7,1849.5,4.80298]
[1745716538648,5.389,1849.7,1849.5,4.80299]
[1745716539050,5.389,1849.7,1849.6,1.08096]
[1745716539651,1.08096,1849.6,1849.5,3.722]
[1745716539847,2.16776,1849.6,1849.5,2.46639]
[1745716540145,2.16776,1849.6,1848.7,1.08147]
[1745716540146,2.70281,1849.4,1848.7,1.08147]
[1745716540400,3.2078,1849.2,1848.6,3.2078]
[1745716540541,1.08121,1849.2,1849.0,1.08129]
[1745716540742,3.2078,1849.4,1848.8,3.2078]
[1745716540743,3.2078,1849.6,1848.9,2.70344]
[1745716540941,6.46888,1849.8,1849.6,1.08096]
[1745716541145,5.388,1849.7,1849.6,1.08096]
[1745716542151,5.388,1849.7,1849.5,4.80299]
[1745716542351,6.46892,1849.7,1849.6,0.01089416]
[1745716542855,6.46891,1849.7,1849.6,0.01089416]
[1745716543055,5.388,1849.7,1849.6,1.09185416]
[1745716543355,5.388,1849.7,1849.6,1.09181416]
[1745716543851,3.2078,1850.5,1849.7,2.70227]
[1745716544053,1.08065,1850.2,1850.0,3.2078]
[1745716544256,1.08062,1850.2,1850.0,4.28851]
[1745716544456,6.4686,1850.3,1850.0,4.28851]
[1745716544653,1.08063,1850.2,1850.0,3.2078]
[1745716545049,6.46857,1850.3,1850.0,4.28853]
[1745716545355,5.388,1850.2,1850.0,8.01049]
[1745716545557,5.388,1850.2,1850.0,6.9298]
[1745716545784,5.388,1850.2,1850.0,8.01049]
[1745716546263,5.388,1850.2,1850.0,6.9298]
[1745716546561,6.46863,1850.2,1850.0,6.9298]
[1745716546963,1.08067,1850.1,1850.0,3.722]
[1745716547456,2.16687,1850.1,1850.0,3.722]
[1745716547656,6.46866,1850.2,1850.0,3.722]
[1745716547849,5.388,1850.2,1850.0,3.722]
[1745716548052,60.68,1850.4,1850.0,3.722]
[1745716548251,3.2078,1850.8,1850.0,3.722]
[1745716548252,3.2078,1850.8,1850.3,2.70139]
[1745716548454,5.388,1850.9,1850.6,3.2078]
[1745716548661,6.46821,1850.9,1850.7,1.08031]
[1745716549056,5.388,1850.9,1850.6,3.2078]
[1745716549253,6.46822,1850.9,1850.7,3.722]
[1745716549663,5.388,1850.9,1850.7,3.722]
[1745716549962,5.388,1851.0,1850.9,1.08019]
[1745716550162,5.388,1851.0,1850.9,4.80219]
[1745716550552,60.672,1851.2,1850.9,3.722]
[1745716550766,5.387,1851.4,1851.0,3.2078]
[1745716551108,5.387,1851.4,1851.2,4.28778]
[1745716551363,5.387,1851.8,1851.2,3.2078]
[1745716551662,5.387,1851.8,1851.3,0.8524]
[1745716551857,1.07983,1851.6,1851.3,4.0602]
[1745716552060,1.07983,1851.6,1851.3,7.7822]
[1745716552260,4.293,1851.7,1851.3,4.5744]
[1745716552564,1.07989,1851.5,1851.3,4.5744]
[1745716552764,5.387,1851.4,1851.3,4.5744]
[1745716552957,5.387,1851.4,1851.3,5.65437]
[1745716553159,5.387,1851.4,1851.3,4.5744]
[1745716553357,6.46691,1851.4,1851.3,4.5744]
[1745716553557,5.387,1851.4,1851.3,6.2819]
[1745716554063,6.46691,1851.4,1851.3,6.2819]
[1745716554364,6.46691,1851.4,1851.3,7.36184]
[1745716554365,5.386,1851.4,1851.3,7.36184]
[1745716554968,3.2078,1851.7,1851.3,6.2819]
[1745716555158,1.07987,1851.5,1851.4,1.6048]
[1745716555402,1.07985,1851.5,1851.4,1.6048]
[1745716556155,1.07985,1851.5,1851.4,5.3268]
[1745716556660,5.386,1851.5,1851.4,6.40671]
[1745716556865,3.2078,1851.7,1851.5,1.07983]
[1745716557165,8.5928,1851.7,1851.6,1.6048]
[1745716557464,9.67254,1851.7,1851.6,1.6048]
[1745716557963,9.67254,1851.7,1851.6,2.6846]
[1745716557964,8.5928,1851.7,1851.6,2.6846]
[1745716558165,9.45154,1851.7,1851.6,1.6048]
[1745716558951,8.3718,1851.7,1851.6,1.6048]
[1745716559159,9.45154,1851.7,1851.6,1.6048]
[1745716559559,8.3718,1851.7,1851.6,1.6048]
[1745716559758,8.3718,1851.7,1851.6,2.6846]
[1745716559968,8.3718,1851.7,1851.6,1.6048]
[1745716560365,9.45154,1851.7,1851.6,1.6048]
[1745716561666,1.0798,1851.6,1851.5,2.4681]
[1745716561866,1.08023,1850.9,1850.4,4.0973]
[1745716562070,5.163,1850.9,1850.6,1.08033]
[1745716562268,6.24326,1850.9,1850.7,1.6092]
[1745716562765,6.24325,1850.9,1850.7,1.6092]
[1745716563156,6.24325,1850.9,1850.7,6.41152]
[1745716563353,5.163,1850.9,1850.8,1.08026]
[1745716563562,5.163,1851.3,1851.1,1.08005]
[1745716563886,5.163,1851.3,1851.0,3.2078]
[1745716564061,5.163,1851.3,1851.2,1.08003]
[1745716564262,4.28769,1851.5,1851.2,1.08003]
[1745716564466,4.28769,1851.5,1851.2,2.78833]
[1745716564664,3.2078,1851.5,1851.3,1.07997]
[1745716564864,4.28765,1851.5,1851.4,1.7083]
[1745716565069,3.2078,1851.5,1851.4,5.4303]
[1745716565260,4.28765,1851.5,1851.4,5.4303]
[1745716565766,3.2078,1851.5,1851.4,6.51021]
[1745716565968,4.28765,1851.5,1851.4,5.4303]
[1745716566370,5.37285,1851.5,1851.4,5.4303]
[1745716566671,5.37285,1851.5,1851.4,3.722]
[1745716566672,10.37285,1851.5,1851.4,3.722]
[1745716567261,1.08006,1851.2,1851.0,2.78843]
[1745716567468,6.24309,1851.1,1851.0,1.7083]
[1745716567865,9.45089,1851.1,1851.0,1.7083]
[1745716568263,9.45089,1851.1,1850.9,0.81848]
[1745716568264,1.08015,1851.0,1850.9,0.81848]
[1745716568465,1.08015,1851.0,1850.1,5.958]
[1745716568466,1.08091,1849.7,1849.6,0.01089416]
[1745716568764,6.24391,1849.7,1849.6,0.01089416]
[1745716568967,11.24391,1849.7,1849.6,4.16e-06]
[1745716569168,16.05111,1849.7,1849.6,4.16e-06]
[1745716569370,1.08102,1849.5,1849.4,9.04827292]
[1745716569575,4.37791233,1849.5,1849.4,7.70305292]
[1745716569768,8.29689233,1849.5,1849.2,4.17991863]
[1745716569966,4.28894,1849.3,1849.2,1.34372863]
[1745716570167,9.54103233,1849.3,1849.2,8.63e-06]
[1745716570371,14.54100969,1849.3,1849.2,8.63e-06]
[1745716570565,4.37800969,1849.3,1849.2,8.63e-06]
[1745716570767,9.54100969,1849.3,1849.2,8.63e-06]
[1745716570970,9.45194,1849.3,1849.2,8.63e-06]
[1745716571167,9.45194,1849.3,1849.2,3.72200863]
[1745716571422,4.28894,1849.3,1849.2,3.72200863]
[1745716571676,8.3708,1849.3,1849.2,3.722]
[1745716571869,8.3708,1849.3,1849.2,8.722]
[1745716572176,5.164,1849.6,1849.5,1.08102]
[1745716572495,8.3718,1850.0,1849.5,3.2078]
[1745716572669,8.3718,1850.0,1849.9,1.08079]
[1745716572871,1.084,1850.4,1850.1,1.08064]
[1745716573065,1.08087,1849.8,1849.4,1.08104]
[1745716573267,1.084,1850.3,1849.9,3.722]
[1745716573471,5.164,1850.3,1850.0,2.7852]
[1745716573674,6.24459,1850.3,1850.0,1.7045]
[1745716573872,5.164,1850.2,1850.0,1.7045]
[1745716574073,5.164,1850.4,1850.1,3.2078]
[1745716574374,5.164,1850.4,1850.2,1.08061]
[1745716574575,1.08045,1850.5,1850.3,1.7045]
[1745716574872,6.2455,1850.4,1850.3,1.7045]
[1745716575074,6.249,1850.4,1850.1,1.7045]
[1745716575374,7.32953,1850.4,1850.1,1.7045]
[1745716575574,9.4568,1850.4,1850.1,1.7045]
[1745716575767,1.08061,1850.2,1850.1,1.7045]
[1745716576175,8.3728,1850.4,1850.1,1.7045]
[1745716576372,5.165,1850.4,1850.3,1.08055]
[1745716576570,5.165,1850.5,1850.4,1.08045]
[1745716576769,5.165,1850.5,1850.4,2.69645]
[1745716576977,5.165,1850.6,1850.5,1.08044]
[1745716577167,3.56163236,1850.9,1850.8,1.08026]
[1745716577375,3.56163236,1850.9,1850.8,6.08026]
[1745716577674,2.18183236,1850.9,1850.8,6.08026]
[1745716577866,2.18183236,1850.9,1850.8,8.54266]
[1745716578175,1.41144855,1851.0,1850.9,1.0802]
[1745716578374,3.53834564,1851.1,1851.0,1.08015]
[1745716578679,3.56487199,1851.4,1851.3,1.07997]
[1745716578873,3.56487199,1851.4,1851.3,4.28777]
[1745716579175,3.56487199,1851.4,1851.3,8.00977]
[1745716579380,3.56487199,1851.4,1851.3,3.722]
[1745716580038,3.56487199,1851.4,1851.3,3.76347562]
[1745716580571,3.56487199,1851.4,1851.3,4.84344562]
[1745716580772,3.56487199,1851.4,1851.3,13.05124562]
[1745716580974,2.31744564,1851.6,1851.5,1.07985]
[1745716581169,10.63147818,1852.0,1851.5,1.07985]
[1745716581170,9.26468818,1852.0,1851.9,1.07962]
[1745716581371,6.59964818,1852.0,1851.9,4.28742]
[1745716581578,5.51571818,1852.0,1851.9,9.28742]
[1745716581779,5.51571818,1852.0,1851.9,9.32889562]
[1745716582217,2.62702,1852.6,1852.2,1.07941]
[1745716582372,1.5478,1852.6,1852.3,5.89739]
[1745716582679,12.62702,1852.6,1852.4,1.6102]
[1745716582878,11.5478,1852.6,1852.5,0.04147562]
[1745716583082,12.62701,1852.6,1852.5,3.76347562]
[1745716583376,11.5478,1852.6,1852.5,3.76347562]
[1745716583769,10.0,1852.6,1852.5,3.76347562]
[1745716583974,8.90900212,1852.7,1852.6,1.07921]
[1745716584178,8.90900212,1852.7,1852.6,2.68941]
[1745716584581,18.90900212,1852.7,1852.6,1.6102]
[1745716584874,1.03773438,1852.6,1852.5,3.722]
[1745716585074,2.65043438,1852.6,1852.5,3.722]
[1745716585277,12.65043438,1852.6,1852.5,3.722]
[1745716586175,1.07942,1852.3,1852.1,1.6102]
[1745716586376,1.07948,1852.2,1852.0,3.2078]
[1745716586579,15.162,1852.3,1852.0,3.2078]
[1745716586975,5.162,1852.3,1852.2,1.07945]
[1745716587173,8.3688,1852.6,1852.3,1.07939]
[1745716587376,2.65248,1852.5,1852.2,4.80142]
[1745716587675,1.5732,1852.5,1852.2,3.722]
[1745716587877,11.5732,1852.5,1852.4,1.07933]
[1745716588083,3.2078,1852.6,1852.3,1.5645]
[1745716588382,1.07935,1852.4,1852.2,3.722]
[1745716588630,2.65201,1852.5,1852.2,4.80144]
[1745716588776,2.652,1852.5,1852.2,4.80141]
[1745716589083,11.5727,1852.5,1852.3,2.67896]
[1745716589278,12.65202,1852.5,1852.3,1.5996]
[1745716589877,11.5727,1852.5,1852.3,1.5996]
[1745716590074,5.161,1852.6,1852.5,1.07927]
[1745716590581,5.161,1852.6,1852.3,8.5294]
[1745716590913,5.161,1852.6,1852.5,1.07927]
[1745716591284,5.161,1852.6,1852.4,2.67888]
[1745716591480,1.07927,1852.5,1852.4,1.5996]
[1745716591688,1.07933,1852.4,1852.3,3.722]
[1745716591882,19.9457,1852.6,1852.3,3.722]
[1745716592094,1.07933,1852.4,1852.3,3.722]
[1745716592577,19.28713,1852.4,1852.3,3.722]
[1745716592775,1.07956,1852.0,1851.8,1.6104]
[1745716593085,18.29674657,1852.4,1851.8,1.6104]
[1745716593086,6.13762,1851.9,1851.8,1.6104]
[1745716593289,6.13764,1851.9,1851.4,1.6104]
[1745716593488,5.058,1851.9,1851.8,1.07968]
[1745716593680,2.65625,1852.4,1851.7,2.69935]
[1745716593987,75.659,1852.5,1851.9,2.69906]
[1745716594189,75.659,1852.5,1852.1,3.2078]
[1745716594190,60.601,1852.5,1852.1,3.2078]
[1745716594393,75.659,1852.5,1852.4,1.07933]
[1745716594687,76.7383,1852.5,1852.3,1.07939]
[1745716594886,76.7383,1852.5,1852.4,1.5559]
[1745716595281,75.659,1852.5,1852.4,1.5559]
[1745716595881,76.73827,1852.5,1852.4,1.5559]
[1745716596192,65.659,1852.5,1852.4,6.35723]
[1745716596389,65.659,1852.5,1852.4,5.2779]
[1745716596589,65.659,1852.5,1852.4,6.35723]
[1745716596793,66.73827,1852.5,1852.4,5.2779]
[1745716596981,66.73827,1852.5,1852.4,3.722]
[1745716596982,76.73827,1852.5,1852.4,3.722]
[1745716597182,1.0795,1852.1,1852.0,1.5559]
[1745716597383,5.058,1852.1,1852.0,2.63546]
[1745716597691,15.058,1852.1,1851.8,0.9188]
[1745716597985,3.2078,1852.0,1851.2,2.8618]
[1745716598188,21.6507,1852.1,1851.3,1.6982]
[1745716598189,1.07991,1851.4,1851.3,1.6982]
[1745716598389,1.07997,1851.3,1851.2,3.722]
[1745716598589,2.67267,1851.3,1851.2,3.722]
[1745716598778,11.5927,1851.3,1851.2,4.80203]
[1745716598982,6.13795,1851.4,1851.2,3.722]
[1745716598983,5.058,1851.4,1851.2,3.722]
[1745716599192,5.058,1851.4,1851.3,1.6982]
[1745716599602,6.13791,1851.4,1851.3,1.6982]
[1745716599790,17.73064,1851.4,1851.2,3.722]
[1745716599989,16.6507,1851.4,1851.3,1.07997]
[1745716600190,5.058,1851.4,1851.3,2.77817]
[1745716600390,5.058,1851.4,1851.3,1.6982]
[1745716600896,6.13791,1851.4,1851.3,1.6982]
[1745716601099,17.81431,1851.4,1851.3,1.6982]
[1745716601398,5.058,1851.4,1851.3,1.07997]
[1745716601583,1.08003,1851.2,1850.9,2.8618]
[1745716601789,2.75638,1851.3,1851.0,1.08015]
[1745716601990,5.058,1851.4,1851.1,1.6868]
[1745716602195,6.13795,1851.4,1851.1,1.6868]
[1745716602398,3.2078,1851.5,1851.4,1.07991]
[1745716602600,8.2658,1851.5,1851.4,1.07991]
[1745716602798,8.2658,1851.5,1851.3,1.07995]
[1745716603101,18.2658,1851.5,1851.3,1.07994]
[1745716603400,13.2078,1851.5,1851.4,1.6868]
[1745716603594,18.2658,1851.5,1851.4,1.6868]
[1745716603989,19.9126,1851.5,1851.4,1.6868]
[1745716604197,20.99245,1851.5,1851.4,1.6868]
[1745716604397,20.99245,1851.5,1851.2,1.594]
[1745716604398,1.07997,1851.3,1851.2,1.594]
[1745716604598,1.07997,1851.3,1850.9,3.2078]
[1745716604599,3.2078,1851.3,1850.9,3.2078]
[1745716604799,10.0,1851.3,1851.1,1.08007]
[1745716605098,9.9126,1851.5,1851.2,2.67403]
[1745716605298,1.07992,1851.4,1851.2,1.594]
[1745716605603,2.72672,1851.4,1851.2,1.594]
[1745716605802,12.72672,1851.4,1851.2,1.594]
[1745716606491,11.6468,1851.4,1850.9,3.2078]
[1745716606700,3.2078,1851.1,1850.6,3.2078]
[1745716606901,5.059,1851.0,1850.9,1.08019]
[1745716607105,5.059,1851.0,1850.8,1.08024]
[1745716607297,1.08026,1850.8,1850.7,1.6035]
[1745716607491,1.0804,1850.6,1850.4,3.94228]
[1745716607691,5.059,1850.5,1850.0,1.08069]
[1745716607895,3.2078,1850.2,1849.8,2.8618]
[1745716608192,6.715,1850.5,1849.5,0.09407338]
[1745716608193,1.08087,1849.8,1849.5,7.1506]
[1745716608395,6.13991,1849.7,1849.6,1.6035]
[1745716608593,5.059,1849.7,1849.3,7.06955947]
[1745716608798,1.656,1849.6,1849.3,8.67305947]
[1745716609196,1.08108,1849.4,1849.3,7.06955947]
[1745716609604,3.2078,1849.5,1849.4,1.08108]
[1745716609793,3.2078,1849.5,1849.4,1.623]
[1745716609998,14.28884,1849.5,1849.3,7.06955947]
[1745716610192,2.78008,1849.4,1849.3,7.06955947]
[1745716610401,1.699,1849.4,1849.3,7.06955947]
[1745716610703,11.699,1849.4,1849.3,7.06955947]
[1745716610906,1.699,1849.4,1849.3,8.15069947]
[1745716611106,3.2078,1849.5,1849.3,11.87269947]
[1745716611401,5.061,1849.8,1849.7,1.08091]
[1745716611709,1.7378,1850.4,1850.1,1.08067]
[1745716611710,5.061,1850.2,1850.1,1.08067]
[1745716612098,3.2078,1850.4,1850.3,1.08055]
[1745716612303,9.9678,1850.8,1850.3,3.2078]
[1745716612506,9.9678,1850.8,1850.6,1.08036]
[1745716612705,19.9678,1850.8,1850.6,1.08036]
[1745716612905,19.9678,1850.8,1850.7,1.08032]
[1745716613106,19.9678,1850.8,1850.6,1.08034]
[1745716613295,19.9678,1850.8,1850.6,1.08038]
[1745716613598,19.9678,1850.8,1850.7,1.08032]
[1745716613794,19.9678,1850.8,1850.6,1.6931]
[1745716613998,1.08038,1850.7,1850.5,3.722]
[1745716614199,1.6991,1850.7,1850.5,1.08042]
[1745716614408,12.77942,1850.7,1850.4,1.08046]
[1745716614608,11.6991,1850.7,1850.4,2.77356]
[1745716614803,9.34911,1850.8,1850.4,2.77356]
[1745716614804,5.061,1850.6,1850.5,1.08044]
[1745716615109,13.2078,1850.8,1850.7,1.08032]
[1745716615311,18.2688,1850.8,1850.7,1.08032]
[1745716615505,65.698,1851.3,1850.5,5.9089]
[1745716615705,65.698,1851.3,1851.2,1.08003]
[1745716616102,3.2078,1851.5,1851.4,1.07991]
[1745716616404,3.2078,1851.5,1851.3,1.6303]
[1745716616610,13.2078,1851.5,1851.3,1.6303]
[1745716616805,18.2688,1851.5,1851.3,1.6303]
[1745716617497,15.061,1851.5,1851.3,1.6303]
[1745716617701,15.061,1851.5,1851.3,2.71025]
[1745716617905,15.061,1851.5,1851.3,2.71026]
[1745716618103,15.061,1851.5,1851.3,1.6303]
[1745716618404,3.2078,1851.8,1851.3,1.6303]
[1745716618613,4.918,1851.8,1851.7,1.07971]
[1745716619107,3.2078,1852.1,1851.6,3.2078]
[1745716619306,4.918,1852.3,1851.8,3.2078]
[1745716619607,3.2078,1852.1,1851.6,5.2191]
[1745716619808,1.07963,1851.9,1851.6,2.67517]
[1745716620012,4.917,1851.8,1851.7,1.07971]
[1745716620311,4.917,1851.8,1851.7,2.67511]
[1745716620506,3.2078,1852.1,1852.0,1.07956]
[1745716620709,4.917,1852.1,1852.0,1.07956]
[1745716621212,1.5773,1852.5,1852.4,1.07933]
[1745716621409,14.917,1852.5,1852.3,1.07936]
[1745716621603,3.2078,1852.6,1852.5,1.07927]